fUSD/lending_fUSD_20260606
["ID","MTS","AMOUNT","RATE_DAILY","PERIOD"]
[424300364,1780757454000,-1241.90474121,0.000219,2]
[424300365,1780757454000,-1995.41551638,0.000219,2]
[424300366,1780757454000,-242.339104,0.00021918,2]
[424300367,1780757454000,-5000.0,0.00021918,2]
[424300363,1780757454000,-1125.0,0.00021897,2]
[424300371,1780757454000,-154.054209,0.00021918,2]
[424300361,1780757454000,-151.0,0.00021842,2]
[424300369,1780757454000,-151.0,0.00021918,2]
[424300368,1780757454000,-151.0,0.00021918,2]
[424300370,1780757454000,-151.0,0.00021918,2]
[424300357,1780757454000,-680.48447022,0.000216,2]
[424300404,1780757454000,-5000.0,0.00022295,2]
[424300401,1780757454000,-5000.0,0.00022295,2]
[424300448,1780757454000,-200.0,0.00022938,2]
[424300436,1780757454000,-150.0,0.00022457,2]
[424300427,1780757454000,-550.0,0.00022455,2]
[424300434,1780757454000,-150.0,0.00022457,2]
[424300438,1780757454000,-150.0,0.00022457,2]
[424300446,1780757454000,-168.33,0.00022603,2]
[424300449,1780757454000,-151.0,0.00022938,2]
[424300442,1780757454000,-544.74,0.00022466,2]
[424300439,1780757454000,-150.0,0.00022457,2]
[424300450,1780757454000,-2884.75459676,0.00022938,2]
[424300440,1780757454000,-259.0,0.00022457,2]
[424300445,1780757454000,-1241.90474121,0.000225,2]
[424300451,1780757454000,-500.0,0.0002297,2]
[424300433,1780757454000,-150.0,0.00022457,2]
[424300444,1780757454000,-1525.66,0.00022466,2]
[424300447,1780757454000,-1241.90474121,0.000227,2]
[424300453,1780757454000,-1000.0,0.0002297,2]
[424300455,1780757454000,-374.665694,0.0002297,2]
[424300460,1780757454000,-1125.0,0.00022992,2]
[424300456,1780757454000,-374.665694,0.0002297,2]
[424300459,1780757454000,-151.0,0.0002297,2]
[424300461,1780757454000,-1000.23409663,0.00023,2]
[424300454,1780757454000,-1000.0,0.0002297,2]
[424300452,1780757454000,-500.0,0.0002297,2]
[424300457,1780757454000,-374.665694,0.0002297,2]
[424300458,1780757454000,-374.665693,0.0002297,2]
[424300414,1780757454000,-2017.01286119,0.00022392,2]
[424300443,1780757454000,-1279.61,0.00022466,2]
[424300430,1780757454000,-550.0,0.00022455,2]
[424300441,1780757454000,-181.56,0.00022466,2]
[424300432,1780757454000,-248.0,0.00022455,2]
[424300410,1780757454000,-200.0,0.00022378,2]
[424300407,1780757454000,-1241.90474121,0.000223,2]
[424300405,1780757454000,-5000.0,0.00022295,2]
[424300403,1780757454000,-5000.0,0.00022295,2]
[424300406,1780757454000,-5000.0,0.00022295,2]
[424300408,1780757454000,-180.0,0.0002234,2]
[424300409,1780757454000,-4204.8,0.00022353,2]
[424300411,1780757454000,-200.0,0.0002239,2]
[424300437,1780757454000,-150.0,0.00022457,2]
[424300413,1780757454000,-2781.82699784,0.0002239,2]
[424300415,1780757454000,-500.0,0.00022392,2]
[424300417,1780757454000,-762.02338758,0.00022407,2]
[424300424,1780757454000,-550.0,0.00022455,2]
[424300421,1780757454000,-292.100373,0.00022407,2]
[424300412,1780757454000,-151.0,0.0002239,2]
[424300426,1780757454000,-550.0,0.00022455,2]
[424300416,1780757454000,-1110.09996919,0.00022393,2]
[424300420,1780757454000,-292.100373,0.00022407,2]
[424300418,1780757454000,-762.02338758,0.00022407,2]
[424300422,1780757454000,-172.0,0.00022455,2]
[424300419,1780757454000,-292.100373,0.00022407,2]
[424300423,1780757454000,-550.0,0.00022455,2]
[424300428,1780757454000,-550.0,0.00022455,2]
[424300429,1780757454000,-550.0,0.00022455,2]
[424300431,1780757454000,-550.0,0.00022455,2]
[424300425,1780757454000,-550.0,0.00022455,2]
[424300435,1780757454000,-150.0,0.00022457,2]
[424300493,1780757455000,-167.96129714,0.0002323,2]
[424300502,1780757455000,-324.3369,0.00023322,2]
[424300505,1780757455000,-194.712125,0.00023322,2]
[424300501,1780757455000,-342.548367,0.00023322,2]
[424300515,1780757455000,-419.0,0.00023323,2]
[424300498,1780757455000,-342.548366,0.00023322,2]
[424300494,1780757455000,-500.0,0.00023241,7]
[424300499,1780757455000,-342.548366,0.00023322,2]
[424300503,1780757455000,-194.712125,0.00023322,2]
[424300497,1780757455000,-151.0,0.00023322,2]
[424300496,1780757455000,-1215.51,0.000233,7]
[424300516,1780757455000,-3642.0,0.00023323,2]
[424300500,1780757455000,-342.548366,0.00023322,2]
[424300517,1780757455000,-151.0,0.00023342,2]
[424300528,1780757455000,-2322.0,0.00023756,3]
[424300506,1780757455000,-324.3369,0.00023322,2]
[424300507,1780757455000,-194.712125,0.00023322,2]
[424300511,1780757455000,-1358.0,0.00023323,2]
[424300508,1780757455000,-324.336896,0.00023322,2]
[424300509,1780757455000,-194.712116,0.00023322,2]
[424300514,1780757455000,-150.0,0.00023323,2]
[424300512,1780757455000,-382.0,0.00023323,2]
[424300510,1780757455000,-3554.0,0.00023323,2]
[424300513,1780757455000,-1274.0,0.00023323,2]
[424300518,1780757455000,-151.0,0.00023342,2]
[424300519,1780757455000,-151.0,0.00023342,2]
[424300520,1780757455000,-14184.8,0.0002344,7]
[424300495,1780757455000,-621.009,0.00023241,7]
[424300504,1780757455000,-324.3369,0.00023322,2]
[424300492,1780757455000,-150.64131538,0.0002323,2]
[424300464,1780757455000,-698.0,0.00023,2]
[424300484,1780757455000,-2532.20131456,0.00023,2]
[424300463,1780757455000,-1042.263907,0.00023,2]
[424300465,1780757455000,-785.0,0.00023,2]
[424300462,1780757455000,-4082.0,0.00023,2]
[424300467,1780757455000,-4263.0,0.00023,2]
[424300476,1780757455000,-936.0,0.00023,2]
[424300477,1780757455000,-1092.0,0.00023,2]
[424300466,1780757455000,-1241.90474121,0.00023,2]
[424300478,1780757455000,-675.0,0.00023,2]
[424300479,1780757455000,-151.0,0.00023,2]
[424300468,1780757455000,-801.0,0.00023,2]
[424300470,1780757455000,-408.0,0.00023,2]
[424300472,1780757455000,-192.967881,0.00023,2]
[424300471,1780757455000,-192.967881,0.00023,2]
[424300469,1780757455000,-1747.0,0.00023,2]
[424300473,1780757455000,-192.967881,0.00023,2]
[424300474,1780757455000,-192.967889,0.00023,2]
[424300475,1780757455000,-200.0,0.00023,10]
[424300481,1780757455000,-2532.201305,0.00023,2]
[424300485,1780757455000,-1366.0,0.00023,2]
[424300480,1780757455000,-2972.0,0.00023,2]
[424300489,1780757455000,-300.0,0.000231,10]
[424300488,1780757455000,-151.0,0.00023,2]
[424300490,1780757455000,-56147.0,0.000231,2]
[424300487,1780757455000,-948.0,0.00023,2]
[424300482,1780757455000,-2532.201305,0.00023,2]
[424300483,1780757455000,-2532.201305,0.00023,2]
[424300486,1780757455000,-4110.0,0.00023,2]
[424300491,1780757455000,-200.0,0.00023157,2]
[424300526,1780757455000,-500.0,0.00023515,7]
[424300584,1780757455000,-617.346821,0.00024658,2]
[424300525,1780757455000,-2991.49051684,0.00023486,2]
[424300554,1780757455000,-1090.71,0.00024158,7]
[424300552,1780757455000,-164.0,0.00024076,3]
[424300555,1780757455000,-651.91,0.00024158,7]
[424300556,1780757455000,-151.0,0.00024171,7]
[424300558,1780757455000,-423.33,0.00024174,2]
[424300557,1780757455000,-300.0,0.00024173,2]
[424300560,1780757455000,-4173.95,0.00024174,2]
[424300559,1780757455000,-1600.69,0.00024174,2]
[424300567,1780757455000,-151.0,0.00024658,2]
[424300565,1780757455000,-200.0,0.00024582,2]
[424300573,1780757455000,-151.0,0.00024658,2]
[424300576,1780757455000,-151.0,0.00024658,2]
[424300568,1780757455000,-151.0,0.00024658,2]
[424300561,1780757455000,-39054.87,0.00024174,2]
[424300569,1780757455000,-151.0,0.00024658,2]
[424300577,1780757455000,-151.0,0.00024658,2]
[424300575,1780757455000,-151.0,0.00024658,2]
[424300570,1780757455000,-151.0,0.00024658,2]
[424300572,1780757455000,-151.0,0.00024658,2]
[424300566,1780757455000,-151.0,0.00024658,2]
[424300574,1780757455000,-151.0,0.00024658,2]
[424300579,1780757455000,-219.048138,0.00024658,2]
[424300578,1780757455000,-151.0,0.00024658,2]
[424300580,1780757455000,-1005.02,0.00024658,2]
[424300582,1780757455000,-617.346821,0.00024658,2]
[424300527,1780757455000,-500.0,0.00023515,7]
[424300585,1780757455000,-617.346821,0.00024658,2]
[424300583,1780757455000,-617.346821,0.00024658,2]
[424300571,1780757455000,-151.0,0.00024658,2]
[424300563,1780757455000,-4204.8,0.00024324,2]
[424300581,1780757455000,-1000.0,0.00024658,2]
[424300564,1780757455000,-2428.0,0.00024519,2]
[424300521,1780757455000,-1124.45,0.00023454,7]
[424300522,1780757455000,-672.08,0.00023454,7]
[424300524,1780757455000,-151.0,0.00023486,2]
[424300523,1780757455000,-200.0,0.00023486,2]
[424300540,1780757455000,-408.0,0.00024,2]
[424300530,1780757455000,-500.0,0.00023789,30]
[424300534,1780757455000,-1042.263907,0.00024,2]
[424300532,1780757455000,-200.0,0.00023935,2]
[424300538,1780757455000,-801.0,0.00024,2]
[424300531,1780757455000,-500.0,0.00023789,30]
[424300536,1780757455000,-785.0,0.00024,2]
[424300535,1780757455000,-698.0,0.00024,2]
[424300529,1780757455000,-500.0,0.00023789,30]
[424300533,1780757455000,-4082.0,0.00024,2]
[424300539,1780757455000,-1747.0,0.00024,2]
[424300553,1780757455000,-1125.0,0.00024142,2]
[424300551,1780757455000,-200.0,0.00024034,2]
[424300537,1780757455000,-4263.0,0.00024,2]
[424300545,1780757455000,-675.0,0.00024,2]
[424300549,1780757455000,-5530.0,0.00024,3]
[424300547,1780757455000,-4110.0,0.00024,2]
[424300550,1780757455000,-948.0,0.00024,2]
[424300562,1780757455000,-10802.60937511,0.0002429,7]
[424300548,1780757455000,-215.80795776,0.00024,7]
[424300541,1780757455000,-500.0,0.00024,2]
[424300544,1780757455000,-1092.0,0.00024,2]
[424300543,1780757455000,-160.0,0.00024,7]
[424300542,1780757455000,-936.0,0.00024,2]
[424300546,1780757455000,-2972.0,0.00024,2]
[424300622,1780757456000,-1747.43,0.00024658,2]
[424300621,1780757456000,-152.350857,0.00024658,2]
[424300629,1780757456000,-315.0,0.000248,2]
[424300620,1780757456000,-152.350853,0.00024658,2]
[424300617,1780757456000,-152.350853,0.00024658,2]
[424300628,1780757456000,-5530.0,0.000248,5]
[424300619,1780757456000,-152.350853,0.00024658,2]
[424300609,1780757456000,-152.350853,0.00024658,2]
[424300623,1780757456000,-200.0,0.00024714,2]
[424300618,1780757456000,-152.350853,0.00024658,2]
[424300610,1780757456000,-152.350853,0.00024658,2]
[424300638,1780757456000,-213530.32866248,0.00025,2]
[424300627,1780757456000,-1000.0,0.000248,2]
[424300626,1780757456000,-309.0,0.000248,2]
[424300624,1780757456000,-200.0,0.00024718,2]
[424300631,1780757456000,-1056.98,0.00024862,7]
[424300633,1780757456000,-164.44385732,0.00024876,22]
[424300630,1780757456000,-3041.2,0.0002482,7]
[424300632,1780757456000,-631.75,0.00024862,7]
[424300634,1780757456000,-1747.43,0.00024946,7]
[424300635,1780757456000,-300.0,0.00024999,10]
[424300637,1780757456000,-2103.11928448,0.00025,2]
[424300636,1780757456000,-56288.56973458,0.00025,7]
[424300606,1780757456000,-152.350853,0.00024658,2]
[424300625,1780757456000,-200.0,0.000248,2]
[424300605,1780757456000,-152.350853,0.00024658,2]
[424300600,1780757456000,-617.346821,0.00024658,2]
[424300607,1780757456000,-152.350853,0.00024658,2]
[424300640,1780757456000,-712.32414592,0.00025,2]
[424300588,1780757456000,-617.346821,0.00024658,2]
[424300589,1780757456000,-617.346821,0.00024658,2]
[424300590,1780757456000,-617.346821,0.00024658,2]
[424300586,1780757456000,-617.346821,0.00024658,2]
[424300587,1780757456000,-617.346821,0.00024658,2]
[424300591,1780757456000,-617.346821,0.00024658,2]
[424300592,1780757456000,-617.346821,0.00024658,2]
[424300595,1780757456000,-617.346821,0.00024658,2]
[424300596,1780757456000,-617.346821,0.00024658,2]
[424300594,1780757456000,-617.346821,0.00024658,2]
[424300593,1780757456000,-617.346821,0.00024658,2]
[424300602,1780757456000,-152.350853,0.00024658,2]
[424300599,1780757456000,-617.346821,0.00024658,2]
[424300601,1780757456000,-617.346825,0.00024658,2]
[424300598,1780757456000,-617.346821,0.00024658,2]
[424300597,1780757456000,-617.346821,0.00024658,2]
[424300604,1780757456000,-152.350853,0.00024658,2]
[424300615,1780757456000,-152.350853,0.00024658,2]
[424300614,1780757456000,-152.350853,0.00024658,2]
[424300603,1780757456000,-152.350853,0.00024658,2]
[424300611,1780757456000,-152.350853,0.00024658,2]
[424300612,1780757456000,-152.350853,0.00024658,2]
[424300616,1780757456000,-152.350853,0.00024658,2]
[424300608,1780757456000,-152.350853,0.00024658,2]
[424300613,1780757456000,-152.350853,0.00024658,2]
[424300639,1780757456000,-4084.69734692,0.00025,2]
[424300692,1780757456000,-200.0,0.00025678,2]
[424300652,1780757456000,-215.80795776,0.00025,7]
[424300670,1780757456000,-350.0,0.00025091,6]
[424300671,1780757456000,-800.0,0.00025111,9]
[424300672,1780757456000,-800.0,0.00025111,9]
[424300674,1780757456000,-800.0,0.00025111,9]
[424300673,1780757456000,-659.15953549,0.00025111,9]
[424300676,1780757456000,-800.0,0.00025111,9]
[424300675,1780757456000,-800.0,0.00025111,9]
[424300681,1780757456000,-800.0,0.00025111,9]
[424300683,1780757456000,-14184.8,0.0002516,7]
[424300679,1780757456000,-800.0,0.00025111,9]
[424300682,1780757456000,-200.0,0.0002513,2]
[424300687,1780757456000,-718.0,0.00025355,10]
[424300684,1780757456000,-500.0,0.00025193,2]
[424300691,1780757456000,-278.82,0.00025644,2]
[424300690,1780757456000,-1747.43,0.00025523,2]
[424300685,1780757456000,-1747.43,0.00025234,30]
[424300689,1780757456000,-200.0,0.00025492,2]
[424300686,1780757456000,-1125.0,0.00025349,2]
[424300688,1780757456000,-312.50773146,0.00025417,2]
[424300693,1780757456000,-151.0,0.00025783,7]
[424300694,1780757456000,-333.29788241,0.00025785,10]
[424300697,1780757456000,-1600.69,0.00025786,2]
[424300696,1780757456000,-423.33,0.00025786,2]
[424300695,1780757456000,-28382.22,0.00025786,2]
[424300642,1780757456000,-4272.7312709,0.00025,2]
[424300668,1780757456000,-150.0,0.00025086,7]
[424300678,1780757456000,-800.0,0.00025111,9]
[424300680,1780757456000,-800.0,0.00025111,9]
[424300669,1780757456000,-158.0,0.00025086,7]
[424300651,1780757456000,-4129.869333,0.00025,2]
[424300666,1780757456000,-150.0,0.00025086,7]
[424300641,1780757456000,-793.81413638,0.00025,2]
[424300643,1780757456000,-807.48872826,0.00025,2]
[424300645,1780757456000,-427.35551753,0.00025,2]
[424300644,1780757456000,-1754.35310846,0.00025,2]
[424300648,1780757456000,-692.50525579,0.00025,2]
[424300647,1780757456000,-1109.47162442,0.00025,2]
[424300649,1780757456000,-2980.79991138,0.00025,2]
[424300650,1780757456000,-1215.51,0.00025,7]
[424300653,1780757456000,-439.12,0.00025,2]
[424300655,1780757456000,-439.12,0.00025,2]
[424300656,1780757456000,-439.12,0.00025,2]
[424300646,1780757456000,-942.8986884,0.00025,2]
[424300657,1780757456000,-439.12,0.00025,2]
[424300677,1780757456000,-800.0,0.00025111,9]
[424300664,1780757456000,-522.06157963,0.00025006,2]
[424300659,1780757456000,-439.12,0.00025,2]
[424300661,1780757456000,-439.12,0.00025,2]
[424300654,1780757456000,-439.12,0.00025,2]
[424300667,1780757456000,-150.0,0.00025086,7]
[424300662,1780757456000,-439.12,0.00025,2]
[424300663,1780757456000,-439.12,0.00025,2]
[424300660,1780757456000,-439.12,0.00025,2]
[424300658,1780757456000,-960.0,0.00025,2]
[424300665,1780757456000,-150.0,0.00025086,7]
[424300742,1780757457000,-1000.0,0.00026329,2]
[424300737,1780757457000,-693.39197629,0.00026329,2]
[424300736,1780757457000,-156.587,0.00026329,2]
[424300739,1780757457000,-200.08318283,0.00026329,2]
[424300741,1780757457000,-1000.0,0.00026329,2]
[424300734,1780757457000,-209.40437684,0.00026329,2]
[424300732,1780757457000,-419.0,0.00026323,2]
[424300730,1780757457000,-382.0,0.00026323,2]
[424300733,1780757457000,-3642.0,0.00026323,2]
[424300738,1780757457000,-151.0,0.00026329,2]
[424300735,1780757457000,-151.0,0.00026329,2]
[424300740,1780757457000,-209.40437684,0.00026329,2]
[424300744,1780757457000,-1000.0,0.00026329,2]
[424300765,1780757457000,-1328.27659266,0.00026329,2]
[424300755,1780757457000,-1191.11104074,0.00026329,2]
[424300754,1780757457000,-1000.0,0.00026329,2]
[424300749,1780757457000,-1000.0,0.00026329,2]
[424300746,1780757457000,-1000.0,0.00026329,2]
[424300748,1780757457000,-1107.63007,0.00026329,2]
[424300756,1780757457000,-1000.0,0.00026329,2]
[424300745,1780757457000,-1068.11,0.00026329,2]
[424300747,1780757457000,-279.9045709,0.00026329,2]
[424300750,1780757457000,-1000.0,0.00026329,2]
[424300751,1780757457000,-174.61919141,0.00026329,2]
[424300752,1780757457000,-1148.61238259,0.00026329,2]
[424300758,1780757457000,-1235.18214925,0.00026329,2]
[424300731,1780757457000,-1274.0,0.00026323,2]
[424300743,1780757457000,-1030.0,0.00026329,2]
[424300727,1780757457000,-4204.8,0.00026296,2]
[424300700,1780757457000,-1023.25,0.000258,7]
[424300724,1780757457000,-1582.0,0.00026238,5]
[424300704,1780757457000,-500.0,0.000258,7]
[424300703,1780757457000,-500.0,0.000258,7]
[424300698,1780757457000,-4173.95,0.00025786,2]
[424300766,1780757457000,-160.0,0.00026329,2]
[424300699,1780757457000,-39054.87,0.00025786,2]
[424300701,1780757457000,-341.7,0.000258,7]
[424300702,1780757457000,-500.0,0.000258,7]
[424300705,1780757457000,-500.0,0.000258,7]
[424300708,1780757457000,-500.0,0.000258,7]
[424300709,1780757457000,-500.0,0.000258,7]
[424300707,1780757457000,-500.0,0.000258,7]
[424300711,1780757457000,-439.0,0.000258,7]
[424300710,1780757457000,-500.0,0.000258,7]
[424300706,1780757457000,-500.0,0.000258,7]
[424300715,1780757457000,-4599.10902732,0.00026,2]
[424300713,1780757457000,-151.0,0.00025924,4]
[424300714,1780757457000,-610.98305302,0.0002599,2]
[424300716,1780757457000,-220.12007771,0.00026,2]
[424300712,1780757457000,-1747.43,0.00025811,7]
[424300718,1780757457000,-550.0,0.00026,2]
[424300717,1780757457000,-76715.76223239,0.00026,2]
[424300728,1780757457000,-3554.0,0.00026323,2]
[424300729,1780757457000,-1358.0,0.00026323,2]
[424300719,1780757457000,-215.80795776,0.00026,7]
[424300722,1780757457000,-1747.43,0.00026099,30]
[424300721,1780757457000,-278.0,0.00026027,2]
[424300720,1780757457000,-150.0,0.00026027,2]
[424300726,1780757457000,-200.0,0.0002627,2]
[424300725,1780757457000,-3642.0,0.0002627,2]
[424300723,1780757457000,-242.80105347,0.00026226,2]
[424300768,1780757457000,-209.40437684,0.00026329,2]
[424300753,1780757457000,-578.20924308,0.00026329,2]
[424300760,1780757457000,-1280.88388877,0.00026329,2]
[424300801,1780757457000,-1323.30755,0.00026384,2]
[424300794,1780757457000,-1323.30755,0.00026384,2]
[424300795,1780757457000,-1323.30755,0.00026384,2]
[424300803,1780757457000,-1323.30755,0.00026384,2]
[424300797,1780757457000,-1323.30755,0.00026384,2]
[424300804,1780757457000,-1323.30755,0.00026384,2]
[424300806,1780757457000,-1323.30755,0.00026384,2]
[424300796,1780757457000,-1323.30755,0.00026384,2]
[424300802,1780757457000,-1323.30755,0.00026384,2]
[424300805,1780757457000,-1323.30755,0.00026384,2]
[424300798,1780757457000,-1323.30755,0.00026384,2]
[424300808,1780757457000,-719.04747942,0.00026384,2]
[424300818,1780757457000,-773.24136889,0.00026494,2]
[424300816,1780757457000,-1548.0,0.00026488,3]
[424300807,1780757457000,-1323.307554,0.00026384,2]
[424300813,1780757457000,-6710.87012543,0.00026439,2]
[424300810,1780757457000,-151.0,0.00026384,2]
[424300815,1780757457000,-1548.0,0.00026488,3]
[424300809,1780757457000,-6471.42731478,0.00026384,2]
[424300811,1780757457000,-27958.64236527,0.000264,2]
[424300812,1780757457000,-745.65223615,0.00026439,2]
[424300814,1780757457000,-151.0,0.00026439,2]
[424300817,1780757457000,-1548.0,0.00026488,3]
[424300821,1780757457000,-1215.51,0.000265,7]
[424300820,1780757457000,-151.0,0.00026494,2]
[424300824,1780757457000,-151.0,0.00026549,2]
[424300822,1780757457000,-801.85129954,0.00026549,2]
[424300823,1780757457000,-7216.66169591,0.00026549,2]
[424300769,1780757457000,-152.0,0.00026329,2]
[424300800,1780757457000,-1323.30755,0.00026384,2]
[424300799,1780757457000,-1323.30755,0.00026384,2]
[424300819,1780757457000,-6959.17232007,0.00026494,2]
[424300789,1780757457000,-1323.30755,0.00026384,2]
[424300788,1780757457000,-1323.30755,0.00026384,2]
[424300759,1780757457000,-1000.0,0.00026329,2]
[424300767,1780757457000,-151.0,0.00026329,2]
[424300762,1780757457000,-1000.0,0.00026329,2]
[424300761,1780757457000,-500.0,0.00026329,2]
[424300764,1780757457000,-693.39197629,0.00026329,2]
[424300763,1780757457000,-6240.52778667,0.00026329,2]
[424300770,1780757457000,-200.0,0.00026329,2]
[424300774,1780757457000,-152.0,0.00026329,2]
[424300776,1780757457000,-9552.16786547,0.00026329,2]
[424300772,1780757457000,-721.12765534,0.00026329,2]
[424300775,1780757457000,-151.0,0.00026329,2]
[424300771,1780757457000,-209.40437684,0.00026329,2]
[424300773,1780757457000,-1377.42282658,0.00026329,2]
[424300779,1780757457000,-152.0,0.00026329,2]
[424300757,1780757457000,-200.0,0.00026329,2]
[424300791,1780757457000,-1323.30755,0.00026384,2]
[424300778,1780757457000,-152.0,0.00026329,2]
[424300777,1780757457000,-1428.38747117,0.00026329,2]
[424300781,1780757457000,-152.0,0.00026329,2]
[424300783,1780757457000,-152.0,0.00026329,2]
[424300784,1780757457000,-152.0,0.00026329,2]
[424300787,1780757457000,-152.0,0.00026329,2]
[424300792,1780757457000,-1323.30755,0.00026384,2]
[424300782,1780757457000,-152.0,0.00026329,2]
[424300780,1780757457000,-152.0,0.00026329,2]
[424300786,1780757457000,-152.0,0.00026329,2]
[424300793,1780757457000,-1323.30755,0.00026384,2]
[424300785,1780757457000,-200.0,0.00026329,2]
[424300790,1780757457000,-1323.30755,0.00026384,2]
[424300870,1780757458000,-1098.0,0.00027123,2]
[424300872,1780757458000,-1098.0,0.00027123,2]
[424300859,1780757458000,-250.0,0.00027,2]
[424300864,1780757458000,-158.06927802,0.00027123,2]
[424300861,1780757458000,-530.0,0.00027,2]
[424300869,1780757458000,-1098.0,0.00027123,2]
[424300857,1780757458000,-151.0,0.00026924,4]
[424300867,1780757458000,-1098.0,0.00027123,2]
[424300866,1780757458000,-1098.0,0.00027123,2]
[424300860,1780757458000,-1053.083117,0.00027,2]
[424300865,1780757458000,-1098.0,0.00027123,2]
[424300858,1780757458000,-989.51,0.00026973,7]
[424300863,1780757458000,-348.0,0.0002705,2]
[424300868,1780757458000,-1098.0,0.00027123,2]
[424300862,1780757458000,-200.0,0.00027049,2]
[424300877,1780757458000,-1098.0,0.00027123,2]
[424300884,1780757458000,-1098.0,0.00027123,2]
[424300875,1780757458000,-1098.0,0.00027123,2]
[424300874,1780757458000,-1098.0,0.00027123,2]
[424300873,1780757458000,-1098.0,0.00027123,2]
[424300876,1780757458000,-1098.0,0.00027123,2]
[424300885,1780757458000,-500.0,0.00027123,2]
[424300880,1780757458000,-1098.0,0.00027123,2]
[424300878,1780757458000,-1098.0,0.00027123,2]
[424300882,1780757458000,-1098.0,0.00027123,2]
[424300881,1780757458000,-1098.0,0.00027123,2]
[424300879,1780757458000,-1098.0,0.00027123,2]
[424300883,1780757458000,-500.0,0.00027123,2]
[424300898,1780757458000,-1098.0,0.00027123,2]
[424300871,1780757458000,-1098.0,0.00027123,2]
[424300854,1780757458000,-997.16350561,0.00026879,2]
[424300831,1780757458000,-862.28603014,0.00026659,2]
[424300847,1780757458000,-151.0,0.00026877,2]
[424300832,1780757458000,-5451.74277264,0.00026659,2]
[424300827,1780757458000,-7483.67817866,0.00026604,2]
[424300826,1780757458000,-831.51979762,0.00026604,2]
[424300828,1780757458000,-151.0,0.00026604,2]
[424300829,1780757458000,-152.0,0.00026612,3]
[424300825,1780757458000,-10304.6867,0.00026576,2]
[424300830,1780757458000,-417.54734895,0.00026616,2]
[424300833,1780757458000,-151.0,0.00026659,2]
[424300834,1780757458000,-894.19061325,0.00026714,2]
[424300838,1780757458000,-164.0,0.00026803,3]
[424300837,1780757458000,-151.0,0.00026769,2]
[424300839,1780757458000,-961.58486558,0.00026824,2]
[424300835,1780757458000,-151.0,0.00026714,2]
[424300895,1780757458000,-500.0,0.00027123,2]
[424300841,1780757458000,-966.556,0.00026834,90]
[424300844,1780757458000,-181.08010149,0.00026877,2]
[424300836,1780757458000,-927.27566594,0.00026769,2]
[424300842,1780757458000,-217.15233878,0.00026877,2]
[424300843,1780757458000,-290.26104002,0.00026877,2]
[424300845,1780757458000,-200.0,0.00026877,2]
[424300846,1780757458000,-719.04747942,0.00026877,2]
[424300840,1780757458000,-151.0,0.00026824,2]
[424300851,1780757458000,-217.15233878,0.00026877,2]
[424300852,1780757458000,-9905.59807649,0.00026877,2]
[424300855,1780757458000,-151.0,0.00026879,2]
[424300848,1780757458000,-500.0,0.00026877,2]
[424300853,1780757458000,-1481.2378076,0.00026877,2]
[424300856,1780757458000,-14184.8,0.0002688,7]
[424300849,1780757458000,-200.0,0.00026877,2]
[424300850,1780757458000,-217.15233878,0.00026877,2]
[424300891,1780757458000,-500.0,0.00027123,2]
[424300943,1780757458000,-837.0,0.00027123,2]
[424300897,1780757458000,-1098.0,0.00027123,2]